[Event "Dam-SM i Blixtschack"]
[Site "Goteborgs Schackcentrum, Vegatan 20, Gothenburg, Sweden"]
[Date "2024.12.07"]
[Round "4.4"]
[White "Kristiansen, Celina"]
[Black "Nabbing, Johanna"]
[Result "0-1"]
[TimeControl "3 minutes + 2 seconds per move from move one"]
[WhiteFideId "1778510"]
[BlackFideId "1726340"]
[WhiteElo "1462"]
[BlackElo "1613"]

1. e4 {[%clk 00:03:03]} d5 {[%clk 00:03:03]} {[%emt 00:00:02]} 2. exd5 {[%clk
00:03:04]} {[%emt 00:00:02]} Qxd5 {[%clk 00:03:04]} 3. Nc3 {[%clk 00:03:05]}
Qd7 {[%clk 00:03:01]} {[%emt 00:00:04]} 4. Bc4 {[%clk 00:02:59]} {[%emt
00:00:08]} Nf6 {[%clk 00:02:57]} {[%emt 00:00:07]} 5. f3 {[%clk 00:02:45]}
{[%emt 00:00:16]} Qd8 {[%clk 00:02:56]} {[%emt 00:00:04]} 6. d3 {[%clk
00:02:38]} {[%emt 00:00:09]} Bf5 {[%clk 00:02:56]} {[%emt 00:00:02]} 7. Be3
{[%clk 00:02:21]} {[%emt 00:00:18]} e6 {[%clk 00:02:56]} {[%emt 00:00:03]} 8.
a3 {[%clk 00:02:21]} {[%emt 00:00:01]} c6 {[%clk 00:02:57]} {[%emt 00:00:01]} 9.
Nge2 {[%clk 00:02:09]} {[%emt 00:00:14]} Nbd7 {[%clk 00:02:57]} {[%emt
00:00:02]} 10. O-O {[%clk 00:02:07]} {[%emt 00:00:03]} Bd6 {[%clk 00:02:55]}
{[%emt 00:00:04]} 11. Bg5 {[%clk 00:01:56]} {[%emt 00:00:12]} h6 {[%clk
00:02:54]} {[%emt 00:00:05]} 12. Bxf6 {[%clk 00:01:57]} Qxf6 {[%clk 00:02:54]}
{[%emt 00:00:01]} 13. Qd2 {[%clk 00:01:51]} {[%emt 00:00:09]} O-O-O {[%clk
00:02:20]} {[%emt 00:00:36]} 14. Rfe1 {[%clk 00:01:42]} {[%emt 00:00:11]} Ne5
{[%clk 00:01:48]} {[%emt 00:00:33]} 15. Qe3 {[%clk 00:01:01]} {[%emt 00:00:43]}
Nxc4 {[%clk 00:01:42]} {[%emt 00:00:10]} 16. dxc4 {[%clk 00:01:01]} {[%emt
00:00:01]} Qg6 {[%clk 00:01:35]} {[%emt 00:00:09]} 17. g3 {[%clk 00:00:58]}
{[%emt 00:00:06]} b6 {[%clk 00:01:26]} {[%emt 00:00:11]} 18. Nd4 {[%clk
00:00:44]} {[%emt 00:00:15]} Bc5 {[%clk 00:01:07]} {[%emt 00:00:21]} 19. Qf4
{[%clk 00:00:31]} {[%emt 00:00:14]} Bxd4+ {[%clk 00:01:04]} {[%emt 00:00:05]}
20. Rad1 {[%clk 00:00:10]} 0-1

[Event "Dam-SM i Blixtschack"]
[Site "Goteborgs Schackcentrum, Vegatan 20, Gothenburg, Sweden"]
[Date "2024.12.07"]
[Round "8.2"]
[White "Hansson, Susanne"]
[Black "Opdendries, Zoe"]
[Result "1-0"]
[TimeControl "3 minutes + 2 seconds per move from move one"]
[WhiteFideId "1703820"]
[BlackFideId "1739506"]
[WhiteElo "1878"]
[BlackElo "1466"]

1. e4 {[%clk 00:03:02]} {[%emt 00:00:01]} d6 {[%clk 00:03:03]} {[%emt
00:00:02]} 2. d4 {[%clk 00:03:03]} Nf6 {[%clk 00:03:01]} {[%emt 00:00:03]} 3.
Nc3 {[%clk 00:03:04]} Nbd7 {[%clk 00:02:57]} {[%emt 00:00:06]} 4. f4 {[%clk
00:03:05]} {[%emt 00:00:01]} g6 {[%clk 00:02:48]} {[%emt 00:00:12]} 5. e5
{[%clk 00:03:01]} {[%emt 00:00:06]} dxe5 {[%clk 00:02:43]} {[%emt 00:00:07]} 6.
fxe5 {[%clk 00:03:02]} {[%emt 00:00:01]} Nh5 {[%clk 00:02:35]} {[%emt
00:00:10]} 7. g4 {[%clk 00:02:46]} {[%emt 00:00:17]} Ng7 {[%clk 00:02:30]}
{[%emt 00:00:07]} 8. Nf3 {[%clk 00:02:37]} {[%emt 00:00:12]} b6 {[%clk
00:02:18]} {[%emt 00:00:14]} 9. Bg2 {[%clk 00:02:22]} {[%emt 00:00:16]} Bb7
{[%clk 00:02:12]} {[%emt 00:00:08]} 10. O-O {[%clk 00:02:13]} {[%emt 00:00:11]}
c5 {[%clk 00:01:51]} {[%emt 00:00:23]} 11. Ng5 {[%clk 00:01:54]} {[%emt
00:00:20]} f6 {[%clk 00:01:32]} {[%emt 00:00:21]} 12. exf6 {[%clk 00:01:44]}
{[%emt 00:00:12]} Bxg2 {[%clk 00:01:25]} {[%emt 00:00:09]} 13. f7# {[%clk
00:01:35]} {[%emt 00:00:03]} 1-0

[Event "Dam-SM i Blixtschack"]
[Site "Goteborgs Schackcentrum, Vegatan 20, Gothenburg, Sweden"]
[Date "2024.12.07"]
[Round "8.3"]
[White "Claesson, Margareta"]
[Black "Mironova, Olga K"]
[Result "1-0"]
[TimeControl "3 minutes + 2 seconds per move from move one"]
[WhiteFideId "1701703"]
[BlackFideId "1779656"]
[WhiteElo "1934"]
[BlackElo "1404"]

1. e4 {[%clk 00:03:04]} e6 {[%clk 00:03:03]} {[%emt 00:00:03]} 2. d4 {[%clk
00:03:01]} {[%emt 00:00:03]} d5 {[%clk 00:03:02]} {[%emt 00:00:03]} 3. e5
{[%clk 00:03:02]} {[%emt 00:00:01]} c5 {[%clk 00:03:02]} {[%emt 00:00:02]} 4.
c3 {[%clk 00:03:04]} Nc6 {[%clk 00:03:03]} {[%emt 00:00:02]} 5. Nf3 {[%clk
00:03:05]} {[%emt 00:00:01]} cxd4 {[%clk 00:03:02]} {[%emt 00:00:03]} 6. cxd4
{[%clk 00:03:06]} Bb4+ {[%clk 00:02:57]} {[%emt 00:00:07]} 7. Nc3 {[%clk
00:03:02]} {[%emt 00:00:06]} Nge7 {[%clk 00:02:49]} {[%emt 00:00:09]} 8. Bd2
{[%clk 00:02:53]} {[%emt 00:00:11]} O-O {[%clk 00:02:45]} {[%emt 00:00:07]} 9.
Bd3 {[%clk 00:02:51]} {[%emt 00:00:04]} a6 {[%clk 00:02:28]} {[%emt 00:00:19]}
10. O-O {[%clk 00:02:44]} {[%emt 00:00:08]} b5 {[%clk 00:02:28]} {[%emt
00:00:02]} 11. Rc1 {[%clk 00:02:27]} {[%emt 00:00:20]} Nf5 {[%clk 00:02:22]}
{[%emt 00:00:08]} 12. Ne2 {[%clk 00:02:12]} {[%emt 00:00:16]} Nfxd4 {[%clk
00:02:03]} {[%emt 00:00:21]} 13. Nexd4 {[%clk 00:02:07]} {[%emt 00:00:07]} Bxd2
{[%clk 00:01:59]} {[%emt 00:00:06]} 14. Qxd2 {[%clk 00:02:06]} {[%emt
00:00:03]} Qc7 {[%clk 00:01:50]} {[%emt 00:00:10]} 15. Rxc6 {[%clk 00:02:05]}
{[%emt 00:00:03]} Qd7 {[%clk 00:01:39]} {[%emt 00:00:13]} 16. Rfc1 {[%clk
00:02:05]} {[%emt 00:00:03]} Bb7 {[%clk 00:01:37]} {[%emt 00:00:04]} 17. Rc7
{[%clk 00:02:04]} {[%emt 00:00:03]} Qd8 {[%clk 00:01:30]} {[%emt 00:00:10]} 18.
Rxb7 {[%clk 00:02:04]} {[%emt 00:00:02]} Rc8 {[%clk 00:01:17]} {[%emt
00:00:14]} 19. Rxc8 {[%clk 00:01:52]} {[%emt 00:00:13]} Qxc8 {[%clk 00:01:17]}
{[%emt 00:00:02]} 20. Rb6 {[%clk 00:01:54]} a5 {[%clk 00:01:15]} {[%emt
00:00:05]} 21. h3 {[%clk 00:01:50]} {[%emt 00:00:06]} Qc7 {[%clk 00:01:06]}
{[%emt 00:00:10]} 22. Qxa5 {[%clk 00:01:48]} {[%emt 00:00:04]} Qc1+ {[%clk
00:00:41]} {[%emt 00:00:27]} 23. Kh2 {[%clk 00:01:47]} {[%emt 00:00:04]} Qf4+
{[%clk 00:00:36]} {[%emt 00:00:06]} 24. g3 {[%clk 00:01:47]} {[%emt 00:00:03]}
Qh6 {[%clk 00:00:24]} {[%emt 00:00:14]} 25. Qxb5 {[%clk 00:01:47]} {[%emt
00:00:03]} f5 {[%clk 00:00:18]} {[%emt 00:00:08]} 26. exf6 {[%clk 00:01:45]}
{[%emt 00:00:03]} gxf6 {[%clk 00:00:19]} {[%emt 00:00:01]} 27. Rb8 {[%clk
00:01:39]} {[%emt 00:00:07]} Rxb8 {[%clk 00:00:05]} {[%emt 00:00:16]} 28. Qxb8+
{[%clk 00:01:40]} {[%emt 00:00:01]} Kg7 {[%clk 00:00:06]} {[%emt 00:00:01]} 29.
Nxe6+ {[%clk 00:01:41]} {[%emt 00:00:06]} Kf7 {[%clk 00:00:00]} {[%emt
00:00:02]} 1-0

[Event "Dam-SM i Blixtschack"]
[Site "Goteborgs Schackcentrum, Vegatan 20, Gothenburg, Sweden"]
[Date "2024.12.07"]
[Round "2.2"]
[White "Isurina Mariano, Cristine Rose"]
[Black "Nabbing, Johanna"]
[Result "1-0"]
[TimeControl "3 minutes + 2 seconds per move from move one"]
[WhiteTitle "WIM"]
[WhiteFideId "5201071"]
[BlackFideId "1726340"]
[WhiteElo "1920"]
[BlackElo "1613"]

1. f4 {[%clk 00:03:03]} d5 {[%clk 00:03:03]} {[%emt 00:00:02]} 2. Nf3 {[%clk
00:03:04]} Nf6 {[%clk 00:03:02]} {[%emt 00:00:03]} 3. d3 {[%clk 00:03:05]}
{[%emt 00:00:01]} Bf5 {[%clk 00:03:03]} 4. Nbd2 {[%clk 00:03:05]} {[%emt
00:00:01]} e6 {[%clk 00:03:04]} {[%emt 00:00:01]} 5. h3 {[%clk 00:03:07]} h6
{[%clk 00:03:05]} {[%emt 00:00:02]} 6. g4 {[%clk 00:03:08]} Bh7 {[%clk
00:03:06]} 7. Bg2 {[%clk 00:03:10]} Nc6 {[%clk 00:03:07]} {[%emt 00:00:02]} 8.
O-O {[%clk 00:03:09]} {[%emt 00:00:02]} Bc5+ {[%clk 00:03:04]} {[%emt
00:00:05]} 9. Kh1 {[%clk 00:03:00]} {[%emt 00:00:11]} Qd6 {[%clk 00:02:48]}
{[%emt 00:00:19]} 10. Nb3 {[%clk 00:02:57]} {[%emt 00:00:04]} Bb6 {[%clk
00:02:31]} {[%emt 00:00:19]} 11. c3 {[%clk 00:02:53]} {[%emt 00:00:06]} O-O
{[%clk 00:02:26]} {[%emt 00:00:06]} 12. d4 {[%clk 00:02:49]} {[%emt 00:00:06]}
Ne4 {[%clk 00:02:14]} {[%emt 00:00:14]} 13. Qe1 {[%clk 00:02:46]} {[%emt
00:00:05]} Rfe8 {[%clk 00:01:58]} {[%emt 00:00:19]} 14. Ne5 {[%clk 00:02:47]}
Nxe5 {[%clk 00:01:58]} {[%emt 00:00:02]} 15. fxe5 {[%clk 00:02:48]} {[%emt
00:00:01]} Qe7 {[%clk 00:01:58]} {[%emt 00:00:02]} 16. Nd2 {[%clk 00:02:43]}
{[%emt 00:00:06]} Nxd2 17. Bxd2 {[%clk 00:02:44]} c6 {[%clk 00:01:54]} {[%emt
00:00:05]} 18. Qg3 {[%clk 00:02:45]} {[%emt 00:00:02]} Bd8 {[%clk 00:01:51]}
{[%emt 00:00:04]} 19. Rf3 {[%clk 00:02:33]} {[%emt 00:00:14]} Be4 {[%clk
00:01:47]} {[%emt 00:00:07]} 20. Rf2 {[%clk 00:02:29]} {[%emt 00:00:05]} Bxg2+
{[%clk 00:01:40]} {[%emt 00:00:09]} 21. Rxg2 {[%clk 00:02:28]} {[%emt
00:00:03]} f6 {[%clk 00:01:34]} {[%emt 00:00:08]} 22. Rf1 {[%clk 00:02:26]}
{[%emt 00:00:04]} fxe5 {[%emt 00:00:04]} 23. dxe5 {[%clk 00:02:20]} {[%emt
00:00:06]} Bc7 {[%clk 00:01:30]} {[%emt 00:00:06]} 24. g5 {[%clk 00:02:18]}
{[%emt 00:00:04]} Rf8 {[%clk 00:01:25]} {[%emt 00:00:07]} 25. Rxf8+ {[%clk
00:01:54]} {[%emt 00:00:26]} Rxf8 {[%clk 00:01:25]} {[%emt 00:00:02]} 26. gxh6
{[%clk 00:01:56]} Rf1+ {[%clk 00:01:23]} {[%emt 00:00:05]} 27. Kh2 {[%clk
00:01:53]} {[%emt 00:00:04]} Qf7 {[%clk 00:00:57]} {[%emt 00:00:29]} 28. Qxg7+
{[%clk 00:01:50]} {[%emt 00:00:04]} Qxg7 {[%clk 00:00:57]} 29. Rxg7+ {[%clk
00:01:51]} {[%emt 00:00:01]} Kf8 {[%clk 00:00:59]} 30. Rxc7 {[%clk 00:01:50]}
{[%emt 00:00:03]} Rf2+ {[%clk 00:00:59]} {[%emt 00:00:02]} 31. Kg3 {[%clk
00:01:51]} {[%emt 00:00:02]} Rxe2 {[%clk 00:01:00]} {[%emt 00:00:01]} 32. Bg5
{[%clk 00:01:49]} {[%emt 00:00:03]} Rxb2 {[%clk 00:00:58]} {[%emt 00:00:04]} 33.
h7 {[%clk 00:01:47]} {[%emt 00:00:04]} 1-0

[Event "Dam-SM i Blixtschack"]
[Site "Goteborgs Schackcentrum, Vegatan 20, Gothenburg, Sweden"]
[Date "2024.12.07"]
[Round "4.6"]
[White "Mironova, Olga K"]
[Black "Opdendries, Zoe"]
[Result "0-1"]
[TimeControl "3 minutes + 2 seconds per move from move one"]
[WhiteFideId "1779656"]
[BlackFideId "1739506"]
[WhiteElo "1404"]
[BlackElo "1466"]

1. e4 {[%clk 00:03:02]} {[%emt 00:00:02]} d6 {[%clk 00:03:00]} {[%emt
00:00:04]} 2. Nf3 {[%clk 00:03:01]} {[%emt 00:00:03]} Nf6 {[%clk 00:03:00]}
{[%emt 00:00:02]} 3. Nc3 {[%clk 00:02:59]} {[%emt 00:00:04]} g6 {[%clk
00:02:59]} {[%emt 00:00:03]} 4. Bc4 {[%clk 00:02:58]} {[%emt 00:00:03]} Bg7
{[%clk 00:02:56]} {[%emt 00:00:05]} 5. Ng5 {[%clk 00:02:52]} {[%emt 00:00:08]}
O-O {[%clk 00:02:45]} {[%emt 00:00:13]} 6. Nxf7 {[%clk 00:02:47]} {[%emt
00:00:07]} Rxf7 {[%clk 00:02:43]} {[%emt 00:00:04]} 7. Bxf7+ {[%clk 00:02:46]}
{[%emt 00:00:03]} Kxf7 {[%clk 00:02:42]} {[%emt 00:00:04]} 8. O-O {[%clk
00:02:40]} {[%emt 00:00:08]} Nbd7 {[%clk 00:02:30]} {[%emt 00:00:13]} 9. Qf3
{[%clk 00:02:39]} {[%emt 00:00:02]} Kg8 {[%clk 00:02:22]} {[%emt 00:00:10]} 10.
e5 {[%clk 00:02:38]} {[%emt 00:00:03]} Nxe5 {[%clk 00:02:16]} {[%emt 00:00:08]}
11. Qe2 {[%clk 00:02:15]} {[%emt 00:00:25]} b6 {[%clk 00:02:02]} {[%emt
00:00:17]} 12. d4 {[%clk 00:02:14]} {[%emt 00:00:02]} Neg4 {[%clk 00:01:50]}
{[%emt 00:00:14]} 13. Bg5 {[%clk 00:01:55]} {[%emt 00:00:21]} Qf8 {[%clk
00:01:32]} {[%emt 00:00:20]} 14. Rfe1 {[%clk 00:01:53]} {[%emt 00:00:04]} e5
{[%clk 00:01:20]} {[%emt 00:00:14]} 15. dxe5 {[%clk 00:01:46]} {[%emt
00:00:09]} Nxe5 {[%clk 00:01:15]} {[%emt 00:00:07]} 16. Rad1 {[%clk 00:01:40]}
{[%emt 00:00:08]} Bb7 {[%clk 00:01:02]} {[%emt 00:00:16]} 17. a4 {[%clk
00:01:13]} {[%emt 00:00:28]} Re8 {[%clk 00:00:58]} {[%emt 00:00:06]} 18. Nb5
{[%clk 00:01:09]} {[%emt 00:00:06]} Nf7 {[%clk 00:00:44]} {[%emt 00:00:16]} 19.
Qc4 {[%clk 00:00:58]} {[%emt 00:00:13]} Rxe1+ {[%clk 00:00:33]} {[%emt
00:00:13]} 20. Rxe1 {[%clk 00:00:57]} {[%emt 00:00:03]} d5 {[%clk 00:00:00]}
{[%emt 00:00:59]} 21. Qxc7 {[%clk 00:00:00]} {[%emt 00:00:07]} Bc8 {[%clk
00:00:30]} {[%emt 00:00:15]} 22. Nd6 {[%clk 00:01:41]} {[%emt 00:00:12]} Nxg5
{[%clk 00:00:24]} {[%emt 00:00:07]} 23. Nxc8 {[%clk 00:01:37]} {[%emt
00:00:07]} Nfe4 {[%clk 00:00:19]} {[%emt 00:00:08]} 24. Ne7+ {[%clk 00:01:26]}
{[%emt 00:00:13]} Kh8 {[%clk 00:00:13]} {[%emt 00:00:07]} 25. Qxa7 {[%clk
00:01:12]} {[%emt 00:00:17]} Qxf2+ {[%clk 00:00:12]} {[%emt 00:00:03]} 26. Kh1
{[%clk 00:00:51]} {[%emt 00:00:23]} Qxe1# {[%clk 00:00:11]} {[%emt 00:00:03]}
0-1

[Event "Dam-SM i Blixtschack"]
[Site "Goteborgs Schackcentrum, Vegatan 20, Gothenburg, Sweden"]
[Date "2024.12.07"]
[Round "8.4"]
[White "Nabbing, Johanna"]
[Black "Olsson, Linn"]
[Result "0-1"]
[TimeControl "3 minutes + 2 seconds per move from move one"]
[WhiteFideId "1726340"]
[BlackFideId "1722514"]
[WhiteElo "1613"]
[BlackElo "1890"]

1. d4 {[%clk 00:03:03]} d5 {[%clk 00:03:03]} {[%emt 00:00:03]} 2. Nf3 {[%clk
00:03:04]} Nc6 {[%clk 00:03:04]} 3. Bf4 {[%clk 00:03:05]} Bf5 {[%clk 00:03:04]}
{[%emt 00:00:02]} 4. e3 {[%clk 00:03:06]} {[%emt 00:00:01]} Nf6 {[%clk
00:03:04]} {[%emt 00:00:02]} 5. c3 {[%clk 00:03:00]} {[%emt 00:00:09]} e6
{[%clk 00:03:03]} {[%emt 00:00:02]} 6. Nbd2 {[%clk 00:03:00]} Be7 {[%clk
00:03:03]} {[%emt 00:00:03]} 7. Be2 {[%clk 00:02:51]} {[%emt 00:00:12]} O-O
{[%clk 00:03:02]} {[%emt 00:00:02]} 8. h3 {[%clk 00:02:47]} {[%emt 00:00:06]}
Bd6 {[%clk 00:02:53]} {[%emt 00:00:11]} 9. Ne5 {[%clk 00:02:30]} {[%emt
00:00:19]} Bxe5 {[%clk 00:02:51]} {[%emt 00:00:04]} 10. dxe5 {[%clk 00:02:27]}
{[%emt 00:00:05]} Nd7 {[%clk 00:02:52]} 11. Nf3 {[%clk 00:02:27]} {[%emt
00:00:02]} Be4 {[%clk 00:02:52]} {[%emt 00:00:02]} 12. Bh2 {[%clk 00:02:14]}
{[%emt 00:00:16]} Bxf3 {[%clk 00:02:50]} {[%emt 00:00:05]} 13. Bxf3 {[%clk
00:02:14]} Ndxe5 {[%clk 00:02:51]} {[%emt 00:00:02]} 14. Bxe5 {[%clk 00:02:05]}
{[%emt 00:00:11]} Nxe5 {[%clk 00:02:52]} 15. Be2 {[%clk 00:01:59]} {[%emt
00:00:07]} Qg5 {[%clk 00:02:53]} {[%emt 00:00:01]} 16. O-O {[%clk 00:01:56]}
{[%emt 00:00:06]} Ng6 {[%clk 00:02:50]} {[%emt 00:00:04]} 17. Bd3 {[%clk
00:01:33]} {[%emt 00:00:25]} Nh4 {[%clk 00:02:44]} {[%emt 00:00:08]} 18. g3
{[%clk 00:01:33]} {[%emt 00:00:01]} Ng6 {[%clk 00:02:42]} {[%emt 00:00:05]} 19.
Bxg6 {[%clk 00:01:26]} {[%emt 00:00:09]} fxg6 {[%clk 00:02:40]} {[%emt
00:00:04]} 20. h4 {[%clk 00:01:25]} {[%emt 00:00:03]} Qe7 {[%clk 00:02:40]}
{[%emt 00:00:01]} 21. Qg4 {[%clk 00:00:57]} {[%emt 00:00:30]} Rf6 {[%clk
00:02:40]} {[%emt 00:00:03]} 22. e4 {[%clk 00:00:55]} {[%emt 00:00:04]} Raf8
{[%clk 00:02:30]} {[%emt 00:00:12]} 23. exd5 {[%clk 00:00:54]} {[%emt
00:00:02]} exd5 {[%clk 00:02:23]} {[%emt 00:00:09]} 24. Rae1 {[%clk 00:00:51]}
{[%emt 00:00:05]} Qc5 {[%clk 00:02:20]} {[%emt 00:00:05]} 25. Qe2 {[%clk
00:00:49]} {[%emt 00:00:04]} Rf3 {[%clk 00:02:08]} {[%emt 00:00:13]} 26. Qe6+
{[%clk 00:00:46]} {[%emt 00:00:06]} Kh8 {[%clk 00:02:10]} {[%emt 00:00:01]} 27.
Re2 {[%clk 00:00:25]} {[%emt 00:00:23]} Rxg3+ {[%clk 00:02:03]} {[%emt
00:00:08]} 28. Kh2 {[%clk 00:00:24]} {[%emt 00:00:38]} Rgf3 {[%clk 00:03:01]}
{[%emt 00:00:03]} 29. Kg2 {[%clk 00:00:14]} {[%emt 00:00:13]} R3f6 {[%clk
00:02:38]} {[%emt 00:00:24]} 30. Qe3 {[%clk 00:00:03]} {[%emt 00:00:13]} h6
{[%clk 00:02:35]} {[%emt 00:00:04]} 31. Qg3 {[%clk 00:00:03]} {[%emt 00:00:03]}
Qc6 {[%clk 00:02:33]} {[%emt 00:00:04]} 32. a3 {[%clk 00:00:04]} d4+ 33. cxd4
{[%clk 00:00:04]} 0-1

[Event "Dam-SM i Blixtschack"]
[Site "Goteborgs Schackcentrum, Vegatan 20, Gothenburg, Sweden"]
[Date "2024.12.07"]
[Round "2.4"]
[White "Nilsson, Elin"]
[Black "Kristiansen, Celina"]
[Result "1-0"]
[TimeControl "3 minutes + 2 seconds per move from move one"]
[WhiteFideId "1790749"]
[BlackFideId "1778510"]
[WhiteElo "1509"]
[BlackElo "1462"]

1. d4 {[%clk 00:03:03]} {[%emt 00:01:14]} c6 {[%clk 00:03:03]} 2. e4 {[%clk
00:03:01]} {[%emt 00:00:04]} d5 {[%clk 00:03:03]} {[%emt 00:00:02]} 3. Nc3
{[%clk 00:03:00]} {[%emt 00:00:04]} Nf6 {[%clk 00:02:38]} {[%emt 00:00:27]} 4.
Bd3 {[%clk 00:02:51]} {[%emt 00:00:11]} dxe4 {[%clk 00:01:41]} {[%emt
00:00:59]} 5. Bc4 {[%clk 00:02:38]} {[%emt 00:00:15]} a6 {[%clk 00:01:20]}
{[%emt 00:00:23]} 6. Be3 {[%clk 00:02:37]} {[%emt 00:00:02]} e6 {[%clk
00:01:10]} {[%emt 00:00:12]} 7. a3 {[%clk 00:02:30]} {[%emt 00:00:10]} Bd6
{[%clk 00:00:57]} {[%emt 00:00:14]} 8. Nh3 {[%clk 00:02:23]} {[%emt 00:00:10]}
h6 {[%clk 00:00:51]} {[%emt 00:00:07]} 9. Na4 {[%clk 00:02:11]} {[%emt
00:00:14]} Qa5+ {[%clk 00:00:34]} {[%emt 00:00:19]} 10. Nc3 {[%clk 00:02:06]}
{[%emt 00:00:08]} O-O {[%clk 00:00:24]} {[%emt 00:00:12]} 11. O-O {[%clk
00:02:03]} {[%emt 00:00:05]} e5 {[%clk 00:00:18]} {[%emt 00:00:09]} 12. dxe5
{[%clk 00:01:58]} {[%emt 00:00:06]} Bxe5 {[%clk 00:00:18]} {[%emt 00:00:02]} 13.
Bf4 {[%clk 00:01:47]} {[%emt 00:00:13]} Bxf4 {[%clk 00:00:14]} {[%emt
00:00:05]} 14. Nxf4 {[%clk 00:01:48]} {[%emt 00:00:02]} Qe5 {[%clk 00:00:06]}
{[%emt 00:00:10]} 15. Qd2 {[%clk 00:01:39]} {[%emt 00:00:12]} Be6 {[%clk
00:00:07]} {[%emt 00:00:01]} 16. Rfe1 {[%clk 00:01:39]} {[%emt 00:00:02]} Bxc4
{[%clk 00:00:07]} {[%emt 00:00:02]} 17. Nxe4 {[%clk 00:01:38]} {[%emt
00:00:03]} Nbd7 {[%clk 00:00:05]} {[%emt 00:00:03]} 18. Nxf6+ {[%clk 00:01:37]}
{[%emt 00:00:03]} Qxf6 {[%clk 00:00:05]} {[%emt 00:00:02]} 19. b3 {[%clk
00:01:37]} {[%emt 00:00:03]} Be6 {[%clk 00:00:05]} {[%emt 00:00:01]} 20. h3
{[%clk 00:01:38]} {[%emt 00:00:02]} Bf5 {[%clk 00:00:05]} {[%emt 00:00:01]} 21.
Rad1 {[%clk 00:01:32]} {[%emt 00:00:09]} Ne5 {[%clk 00:00:05]} {[%emt
00:00:01]} 22. Nh5 {[%clk 00:01:30]} {[%emt 00:00:04]} Qg6 {[%clk 00:00:05]}
{[%emt 00:00:02]} 23. Qe2 {[%clk 00:02:29]} {[%emt 00:01:30]} Nd7 {[%clk
00:00:05]} {[%emt 00:00:06]} 24. a4 {[%clk 00:02:27]} {[%emt 00:00:03]} Rad8
{[%clk 00:00:07]} 25. c4 {[%clk 00:02:27]} {[%emt 00:00:02]} b5 {[%clk
00:00:08]} {[%emt 00:00:01]} 26. cxb5 {[%clk 00:02:27]} {[%emt 00:00:02]} cxb5
{[%emt 00:00:02]} 27. axb5 {[%emt 00:00:02]} axb5 {[%clk 00:00:09]} 28. Qxb5
{[%clk 00:02:27]} {[%emt 00:00:02]} Rb8 {[%clk 00:00:10]} {[%emt 00:00:01]} 29.
Qc4 {[%clk 00:02:23]} {[%emt 00:00:06]} Rxb3 {[%clk 00:00:10]} {[%emt
00:00:02]} 30. Qxb3 {[%clk 00:02:22]} {[%emt 00:00:03]} Be6 {[%clk 00:00:10]}
{[%emt 00:00:02]} 31. Qf3 {[%clk 00:01:58]} {[%emt 00:00:26]} Nc5 {[%clk
00:00:06]} {[%emt 00:00:06]} 32. Nf4 {[%clk 00:01:58]} {[%emt 00:00:02]} Qf5
{[%clk 00:00:06]} {[%emt 00:00:02]} 33. Qe3 {[%clk 00:01:41]} {[%emt 00:00:19]}
Re8 {[%clk 00:00:03]} {[%emt 00:00:05]} 34. Rc1 {[%clk 00:01:37]} {[%emt
00:00:06]} 1-0

[Event "Dam-SM i Blixtschack"]
[Site "Goteborgs Schackcentrum, Vegatan 20, Gothenburg, Sweden"]
[Date "2024.12.07"]
[Round "6.2"]
[White "Kristiansen, Celina"]
[Black "Hansson, Susanne"]
[Result "0-1"]
[TimeControl "3 minutes + 2 seconds per move from move one"]
[WhiteFideId "1778510"]
[BlackFideId "1703820"]
[WhiteElo "1462"]
[BlackElo "1878"]

1. b3 {[%clk 00:03:03]} e5 {[%clk 00:03:03]} {[%emt 00:00:01]} 2. Nf3 {[%clk
00:03:03]} {[%emt 00:00:02]} e4 {[%clk 00:03:01]} {[%emt 00:00:04]} 3. Ng1
{[%clk 00:02:50]} {[%emt 00:00:15]} d5 {[%clk 00:02:57]} {[%emt 00:00:06]} 4.
e3 {[%clk 00:02:43]} {[%emt 00:00:09]} f5 {[%clk 00:02:53]} {[%emt 00:00:06]} 5.
Bb2 {[%clk 00:02:37]} {[%emt 00:00:08]} Nf6 {[%clk 00:02:53]} {[%emt 00:00:02]}
6. h3 {[%clk 00:02:30]} {[%emt 00:00:09]} Bd6 {[%clk 00:02:52]} {[%emt
00:00:03]} 7. Nc3 {[%clk 00:02:16]} {[%emt 00:00:16]} a6 {[%clk 00:02:46]}
{[%emt 00:00:08]} 8. g3 {[%clk 00:02:05]} {[%emt 00:00:13]} c5 {[%clk
00:02:47]} {[%emt 00:00:01]} 9. Bg2 {[%clk 00:01:55]} {[%emt 00:00:12]} Nc6
{[%clk 00:02:48]} {[%emt 00:00:01]} 10. a3 {[%clk 00:01:47]} {[%emt 00:00:09]}
O-O {[%clk 00:02:45]} {[%emt 00:00:05]} 11. d3 {[%clk 00:01:11]} {[%emt
00:00:39]} d4 {[%clk 00:02:18]} {[%emt 00:00:29]} 12. exd4 {[%clk 00:01:04]}
{[%emt 00:00:08]} cxd4 {[%clk 00:02:18]} {[%emt 00:00:03]} 13. Nce2 {[%clk
00:00:57]} {[%emt 00:00:08]} e3 {[%clk 00:01:36]} {[%emt 00:00:44]} 14. f3
{[%clk 00:00:39]} {[%emt 00:00:21]} Qb6 {[%clk 00:01:32]} {[%emt 00:00:06]} 15.
c3 {[%clk 00:00:20]} {[%emt 00:00:21]} Qc7 {[%clk 00:01:18]} {[%emt 00:00:15]}
16. cxd4 {[%clk 00:00:17]} {[%emt 00:00:05]} Bxg3+ {[%clk 00:01:16]} {[%emt
00:00:04]} 17. Nxg3 {[%clk 00:00:15]} {[%emt 00:00:04]} Qxg3+ {[%clk 00:01:17]}
{[%emt 00:00:02]} 18. Kf1 {[%clk 00:00:11]} {[%emt 00:00:06]} Qf2# {[%clk
00:01:11]} {[%emt 00:00:01]} 0-1